[Event "EYCC Girls-U12 2019"]
[Site "Bratislava"]
[Date "2019.08.06"]
[Round "5.15"]
[White "Siekanska, Maria"]
[Black "Shahazizyan, Milena"]
[Result "1-0"]
[ECO "E42"]
[WhiteElo "1561"]
[BlackElo "1201"]
[Annotator "NA"]
[PlyCount "63"]
[EventDate "2019.08.02"]
[EventType "swiss"]
[EventCountry "SVK"]
[SourceTitle "playchess.com"]
[Source "ChessBase"]
[SourceQuality "1"]
[TimeControl "40/5400+30:1800+30"]

1. d4 {[%emt 0:00:00]} Nf6 {[%emt 0:00:00]} 2. c4 {[%emt 0:00:00]} e6 {[%emt 0:00:00]} 3. Nc3 {[%emt 0:00:02]} Bb4 {[%emt 0:00:00]} 4. e3 {[%emt 0:00:08]} c5 {[%emt 0:00:21]} 5. Nge2 {[%emt 0:00:20]} d5 {[%emt 0:01:10]} 6. a3 {[%emt 0:00:18]} Bxc3+ {[%emt 0:00:32]} 7. Nxc3 {[%emt 0:00:30]} Nc6 {[%emt 0:03:17]} 8. cxd5 {[%emt 0:03:15]} Nxd5 {[%emt 0:01:18]} 9. Bc4 {[%emt 0:01:40]} Nxc3 {[%emt 0:02:58]} 10. bxc3 {[%emt 0:02:53]} Qa5 {[%emt 0:02:49]} 11. Bd2 {[%emt 0:06:38]} O-O {[%emt 0:01:41]} 12. O-O {[%emt 0:00:43]} Qc7 {[%emt 0:03:55]} 13. Ba2 {[%emt 0:07:17]} Rd8 {[%emt 0:02:47]} 14. Qe2 {[%emt 0:03:06]} Na5 {[%emt 0:03:51]} 15. Rac1 {[%emt 0:07:59]} b6 {[%emt 0:03:30]} 16. Rfd1 {[%emt 0:06:55]} c4 {[%emt 0:03:17]} 17. e4 {[%emt 0:05:24]} Bd7 {[%emt 0:04:10]} 18. e5 {[%emt 0:01:50]} Ba4 {[%emt 0:01:58]} 19. Re1 {[%emt 0:02:01]} Nb3 {[%emt 0:02:03]} 20. Bxb3 {[%emt 0:01:05]} Bxb3 {[%emt 0:02:58]} 21. Qg4 {[%emt 0:00:54]} Re8 {[%emt 0:09:23]} 22. Bg5 {[%emt 0:02:20]} Kh8 {[%emt 0:04:59]} 23. Re3 {[%emt 0:01:28]} Reb8 {[%emt 0:17:18]} 24. Rh3 {[%emt 0:03:44]} Qc8 {[%emt 0:02:09]} 25. Qe4 {[%emt 0:02:39]} Qg8 {[%emt 0:03:21]} 26. Re1 {[%emt 0:02:10]} Re8 {[%emt 0:03:39]} 27. Ree3 {[%emt 0:01:09]} f6 {[%emt 0:01:59]} 28. exf6 {[%emt 0:00:35]} g6 {[%emt 0:00:33]} 29. Bh6 {[%emt 0:00:24]} Qf7 {[%emt 0:00:21]} 30. Bg7+ {[%emt 0:00:07]} Kg8 {[%emt 0:00:27]} 31. Rxh7 {[%emt 0:00:27]} Qxg7 {[%emt 0:03:42]} 32. Rxg7+ {[%emt 0:00:07]} 1-0

[Event "EYCC Girls-U12 2019"]
[Site "Bratislava"]
[Date "2019.08.06"]
[Round "5.16"]
[White "Norman, Kseniya"]
[Black "Putar, Lara"]
[Result "0-1"]
[ECO "C00"]
[WhiteElo "1532"]
[BlackElo "1608"]
[Annotator "NA"]
[PlyCount "66"]
[EventDate "2019.08.02"]
[EventType "swiss"]
[EventCountry "SVK"]
[SourceTitle "playchess.com"]
[Source "ChessBase"]
[SourceQuality "1"]
[TimeControl "40/5400+30:1800+30"]

1. e4 {[%emt 0:00:00]} e6 {[%emt 0:00:00]} 2. d3 {[%emt 0:00:00]} d5 {[%emt 0:00:00]} 3. Nd2 {[%emt 0:00:00]} c5 {[%emt 0:00:33]} 4. Ngf3 {[%emt 0:00:03]} Nc6 {[%emt 0:01:03]} 5. g3 {[%emt 0:00:56]} Bd6 {[%emt 0:05:10]} 6. Bg2 {[%emt 0:03:01]} Nge7 {[%emt 0:03:19]} 7. O-O {[%emt 0:02:02]} O-O {[%emt 0:00:56]} 8. Re1 {[%emt 0:01:21]} Rb8 {[%emt 0:04:52]} 9. Nf1 {[%emt 0:03:14]} d4 {[%emt 0:02:27]} 10. e5 {[%emt 0:03:37]} Bc7 {[%emt 0:00:27]} 11. Bf4 {[%emt 0:00:40]} Ng6 {[%emt 0:01:59]} 12. h4 {[%emt 0:06:12]} Nxf4 {[%emt 0:01:13]} 13. gxf4 {[%emt 0:00:07]} f6 {[%emt 0:01:48]} 14. Ng3 {[%emt 0:02:16]} Ne7 {[%emt 0:05:29]} 15. exf6 {[%emt 0:09:40]} Rxf6 {[%emt 0:01:41]} 16. Ne4 {[%emt 0:00:33]} Rxf4 {[%emt 0:02:52]} 17. Nxc5 {[%emt 0:01:25]} e5 {[%emt 0:03:32]} 18. Re4 {[%emt 0:10:31]} Rf6 {[%emt 0:08:26]} 19. Nb3 {[%emt 0:13:20]} Bf5 {[%emt 0:06:24]} 20. Re1 {[%emt 0:01:12]} Bg4 {[%emt 0:00:45]} 21. Nbd2 {[%emt 0:03:34]} Ng6 {[%emt 0:05:17]} 22. Qc1 {[%emt 0:04:30]} Qf8 {[%emt 0:01:36]} 23. Nh2 {[%emt 0:15:00]} Bh5 {[%emt 0:03:15]} 24. Bd5+ {[%emt 0:01:58]} Kh8 {[%emt 0:00:47]} 25. Ne4 {[%emt 0:00:31]} Rf4 {[%emt 0:01:04]} 26. Ng5 {[%emt 0:01:47]} Qe7 {[%emt 0:09:19]} 27. Ngf3 {[%emt 0:08:04]} Rbf8 {[%emt 0:04:26]} 28. c3 {[%emt 0:04:07]} Nxh4 {[%emt 0:01:27]} 29. Nxh4 {[%emt 0:02:49]} Qxh4 {[%emt 0:00:16]} 30. f3 {[%emt 0:00:44]} Qg3+ {[%emt 0:01:07]} 31. Kh1 {[%emt 0:00:10]} Rh4 {[%emt 0:00:58]} 32. Qc2 {[%emt 0:00:13]} e4 {[%emt 0:02:09]} 33. Re2 {[%emt 0:00:29]} Bxf3+ {[%emt 0:00:09]} 0-1

[Event "EYCC Girls-U12 2019"]
[Site "Bratislava"]
[Date "2019.08.06"]
[Round "5.17"]
[White "Sargsyan, Lilit G."]
[Black "Fileru, Maria"]
[Result "0-1"]
[ECO "D61"]
[WhiteElo "1415"]
[BlackElo "1602"]
[Annotator "NA"]
[PlyCount "98"]
[EventDate "2019.08.02"]
[EventType "swiss"]
[EventCountry "SVK"]
[SourceTitle "playchess.com"]
[Source "ChessBase"]
[SourceQuality "1"]
[TimeControl "40/5400+30:1800+30"]

1. d4 {[%emt 0:00:00]} d5 {[%emt 0:00:00]} 2. c4 {[%emt 0:00:00]} e6 {[%emt 0:00:00]} 3. Nc3 {[%emt 0:00:00]} Nf6 {[%emt 0:00:00]} 4. Bg5 {[%emt 0:00:04]} Be7 {[%emt 0:00:00]} 5. Nf3 {[%emt 0:00:13]} O-O {[%emt 0:00:09]} 6. e3 {[%emt 0:00:07]} Nbd7 {[%emt 0:00:20]} 7. Qc2 {[%emt 0:01:00]} h6 {[%emt 0:00:45]} 8. h4 {[%emt 0:02:03]} b6 {[%emt 0:09:51]} 9. cxd5 {[%emt 0:04:47]} exd5 {[%emt 0:01:58]} 10. O-O-O {[%emt 0:04:51]} Bb7 {[%emt 0:00:53]} 11. Bf4 {[%emt 0:01:07]} c5 {[%emt 0:00:39]} 12. dxc5 {[%emt 0:02:07]} Rc8 {[%emt 0:06:59]} 13. Bd3 {[%emt 0:08:01]} Nxc5 {[%emt 0:05:42]} 14. Bf5 {[%emt 0:02:17]} Ne6 {[%emt 0:03:14]} 15. Kb1 {[%emt 0:03:40]} Rc4 {[%emt 0:03:58]} 16. Ne5 {[%emt 0:08:32]} Rc5 {[%emt 0:01:57]} 17. Qe2 {[%emt 0:08:28]} Nxf4 {[%emt 0:03:07]} 18. exf4 {[%emt 0:00:38]} Qc7 {[%emt 0:04:47]} 19. Rhg1 {[%emt 0:05:15]} Bc8 {[%emt 0:06:34]} 20. Bd3 {[%emt 0:06:44]} Re8 {[%emt 0:05:23]} 21. Bb5 {[%emt 0:01:09]} Rd8 {[%emt 0:00:45]} 22. Na4 {[%emt 0:04:50]} Bf5+ {[%emt 0:02:28]} 23. Bd3 {[%emt 0:01:40]} Bxd3+ {[%emt 0:00:31]} 24. Rxd3 {[%emt 0:01:39]} Ra5 {[%emt 0:01:03]} 25. Nc3 {[%emt 0:00:56]} d4 {[%emt 0:07:08]} 26. Ne4 {[%emt 0:02:16]} Nd5 {[%emt 0:09:24]} 27. Rc1 {[%emt 0:09:50]} Bc5 {[%emt 0:00:52]} 28. Nxc5 {[%emt 0:03:13]} Rxc5 {[%emt 0:01:48]} 29. Rxc5 {[%emt 0:00:39]} bxc5 {[%emt 0:01:50]} 30. Qe4 {[%emt 0:02:35]} Qb7 {[%emt 0:07:21]} 31. Ka1 {[%emt 0:02:17]} Qa6 {[%emt 0:01:08]} 32. Rd1 {[%emt 0:00:57]} Nb4 {[%emt 0:00:41]} 33. a3 {[%emt 0:01:01]} Qa4 {[%emt 0:04:46]} 34. Rd2 {[%emt 0:00:58]} Qa6 {[%emt 0:06:53]} 35. Rd1 {[%emt 0:01:49]} Nd5 {[%emt 0:00:35]} 36. g3 {[%emt 0:05:09]} Nc3 {[%emt 0:03:45]} 37. Qd3 {[%emt 0:03:08]} c4 {[%emt 0:00:24]} 38. Qd2 {[%emt 0:03:58]} Nxd1 {[%emt 0:00:12]} 39. Qxd1 {[%emt 0:00:10]} c3 {[%emt 0:00:19]} 40. Qb3 {[%emt 0:00:00]} cxb2+ {[%emt 0:00:00]} 41. Qxb2 {[%emt 0:02:50]} d3 {[%emt 0:03:29]} 42. Nf3 {[%emt 0:02:15]} Qe6 {[%emt 0:01:14]} 43. Kb1 {[%emt 0:11:30]} d2 {[%emt 0:05:31]} 44. Nxd2 {[%emt 0:01:49]} Qe1+ {[%emt 0:01:01]} 45. Ka2 {[%emt 0:01:55]} Rxd2 {[%emt 0:00:13]} 46. Qxd2 {[%emt 0:00:14]} Qxd2+ {[%emt 0:00:01]} 47. Kb3 {[%emt 0:00:12]} Qd4 {[%emt 0:00:12]} 48. f3 {[%emt 0:00:10]} Kf8 {[%emt 0:00:10]} 49. g4 {[%emt 0:00:21]} Ke7 {[%emt 0:00:03]} 0-1

[Event "EYCC Girls-U12 2019"]
[Site "Bratislava"]
[Date "2019.08.06"]
[Round "5.18"]
[White "Komissarova, Soigina"]
[Black "Salajan, Stefania"]
[Result "1-0"]
[ECO "B41"]
[WhiteElo "1663"]
[BlackElo "1482"]
[Annotator "NA"]
[PlyCount "75"]
[EventDate "2019.08.02"]
[EventType "swiss"]
[EventCountry "SVK"]
[SourceTitle "playchess.com"]
[Source "ChessBase"]
[SourceQuality "1"]
[TimeControl "40/5400+30:1800+30"]

1. e4 {[%emt 0:00:00]} c5 {[%emt 0:00:00]} 2. Nf3 {[%emt 0:00:00]} e6 {[%emt 0:00:00]} 3. d4 {[%emt 0:00:18]} cxd4 {[%emt 0:00:00]} 4. Nxd4 {[%emt 0:00:24]} a6 {[%emt 0:00:00]} 5. c4 {[%emt 0:00:31]} Nf6 {[%emt 0:00:06]} 6. Nc3 {[%emt 0:01:03]} Bb4 {[%emt 0:03:24]} 7. Qd3 {[%emt 0:00:37]} Qa5 {[%emt 0:06:52]} 8. Bd2 {[%emt 0:08:28]} Nc6 {[%emt 0:06:42]} 9. Nxc6 {[%emt 0:14:26]} dxc6 {[%emt 0:00:27]} 10. Qc2 {[%emt 0:05:15]} Qc7 {[%emt 0:05:19]} 11. Be2 {[%emt 0:01:23]} O-O {[%emt 0:01:42]} 12. O-O {[%emt 0:01:15]} e5 {[%emt 0:05:59]} 13. a3 {[%emt 0:01:02]} Be7 {[%emt 0:01:30]} 14. Rad1 {[%emt 0:17:59]} Be6 {[%emt 0:04:23]} 15. Kh1 {[%emt 0:02:22]} Rad8 {[%emt 0:03:16]} 16. f4 {[%emt 0:01:30]} exf4 {[%emt 0:11:08]} 17. Bxf4 {[%emt 0:00:48]} Bd6 {[%emt 0:01:46]} 18. Rxd6 {[%emt 0:01:38]} Rxd6 {[%emt 0:00:31]} 19. c5 {[%emt 0:00:19]} Re8 {[%emt 0:07:42]} 20. Bxd6 {[%emt 0:03:08]} Qd7 {[%emt 0:01:16]} 21. Qc1 {[%emt 0:09:26]} h6 {[%emt 0:02:09]} 22. Qf4 {[%emt 0:01:51]} Kh8 {[%emt 0:02:07]} 23. h3 {[%emt 0:03:02]} Nh7 {[%emt 0:01:03]} 24. e5 {[%emt 0:10:16]} Ng5 {[%emt 0:00:51]} 25. h4 {[%emt 0:00:55]} Nh7 {[%emt 0:00:06]} 26. Bh5 {[%emt 0:00:30]} Kg8 {[%emt 0:00:51]} 27. Rf3 {[%emt 0:01:17]} g6 {[%emt 0:00:58]} 28. Rg3 {[%emt 0:01:02]} Kg7 {[%emt 0:00:20]} 29. Be2 {[%emt 0:06:51]} Bf5 {[%emt 0:01:18]} 30. Bc4 {[%emt 0:02:12]} Nf8 {[%emt 0:01:19]} 31. Ne2 {[%emt 0:00:19]} Ne6 {[%emt 0:00:14]} 32. Qxf5 {[%emt 0:00:17]} Kh7 {[%emt 0:01:26]} 33. Bxe6 {[%emt 0:00:40]} Rxe6 {[%emt 0:00:49]} 34. Qg4 {[%emt 0:00:41]} h5 {[%emt 0:00:58]} 35. Qg5 {[%emt 0:00:16]} Re8 {[%emt 0:01:21]} 36. Nf4 {[%emt 0:00:23]} Rg8 {[%emt 0:00:12]} 37. Nxh5 {[%emt 0:00:43]} gxh5 {[%emt 0:00:15]} 38. Qxh5# {[%emt 0:00:08]} 1-0

[Event "EYCC Girls-U12 2019"]
[Site "Bratislava"]
[Date "2019.08.06"]
[Round "5.19"]
[White "Mikhailina, Olga"]
[Black "Orian, Noga"]
[Result "0-1"]
[ECO "B33"]
[WhiteElo "1410"]
[BlackElo "1628"]
[Annotator "NA"]
[PlyCount "68"]
[EventDate "2019.08.02"]
[EventType "swiss"]
[EventCountry "SVK"]
[SourceTitle "playchess.com"]
[Source "ChessBase"]
[SourceQuality "1"]
[TimeControl "40/5400+30:1800+30"]

1. e4 {[%emt 0:00:00]} c5 {[%emt 0:00:00]} 2. Nf3 {[%emt 0:00:00]} e6 {[%emt 0:00:00]} 3. d4 {[%emt 0:00:00]} cxd4 {[%emt 0:00:00]} 4. Nxd4 {[%emt 0:00:00]} Nc6 {[%emt 0:00:03]} 5. Nc3 {[%emt 0:00:14]} Nf6 {[%emt 0:00:08]} 6. Ndb5 {[%emt 0:01:02]} d6 {[%emt 0:00:12]} 7. Bf4 {[%emt 0:00:21]} e5 {[%emt 0:00:11]} 8. Bg5 {[%emt 0:00:14]} a6 {[%emt 0:00:11]} 9. Na3 {[%emt 0:00:11]} b5 {[%emt 0:00:10]} 10. Nd5 {[%emt 0:00:27]} Be7 {[%emt 0:00:16]} 11. Bxf6 {[%emt 0:00:10]} Bxf6 {[%emt 0:00:10]} 12. c4 {[%emt 0:00:21]} b4 {[%emt 0:00:16]} 13. Nc2 {[%emt 0:00:08]} a5 {[%emt 0:00:07]} 14. Qf3 {[%emt 0:00:21]} h5 {[%emt 0:12:32]} 15. h3 {[%emt 0:07:20]} Bg5 {[%emt 0:02:46]} 16. g4 {[%emt 0:21:53]} g6 {[%emt 0:08:58]} 17. Be2 {[%emt 0:11:18]} Kf8 {[%emt 0:03:51]} 18. Rd1 {[%emt 0:15:49]} Kg7 {[%emt 0:09:09]} 19. Qg2 {[%emt 0:11:25]} hxg4 {[%emt 0:03:20]} 20. hxg4 {[%emt 0:01:27]} Rxh1+ {[%emt 0:06:30]} 21. Qxh1 {[%emt 0:00:05]} Be6 {[%emt 0:03:14]} 22. Kf1 {[%emt 0:19:35]} Rc8 {[%emt 0:06:55]} 23. b3 {[%emt 0:01:58]} Ne7 {[%emt 0:02:09]} 24. Nxe7 {[%emt 0:03:12]} Qxe7 {[%emt 0:00:23]} 25. Qf3 {[%emt 0:00:33]} Rc6 {[%emt 0:02:03]} 26. Kg2 {[%emt 0:02:38]} Rc8 {[%emt 0:03:58]} 27. Qd3 {[%emt 0:00:56]} Rd8 {[%emt 0:06:28]} 28. Ne3 {[%emt 0:01:44]} Qd7 {[%emt 0:16:39]} 29. f3 {[%emt 0:00:30]} Qa7 {[%emt 0:01:16]} 30. Nc2 {[%emt 0:00:33]} Bf4 {[%emt 0:02:45]} 31. Rh1 {[%emt 0:00:27]} Qc5 {[%emt 0:01:10]} 32. Rd1 {[%emt 0:00:36]} Rh8 {[%emt 0:00:51]} 33. Kf1 {[%emt 0:00:31]} Rh1+ {[%emt 0:00:47]} 34. Kg2 {[%emt 0:00:04]} Rh2+ {[%emt 0:00:14]} 0-1

[Event "EYCC Girls-U12 2019"]
[Site "Bratislava"]
[Date "2019.08.06"]
[Round "5.20"]
[White "Tran, Alva Ling"]
[Black "Levchenko, Marina"]
[Result "1-0"]
[ECO "B23"]
[WhiteElo "1712"]
[BlackElo "1429"]
[Annotator "NA"]
[PlyCount "171"]
[EventDate "2019.08.02"]
[EventType "swiss"]
[EventCountry "SVK"]
[SourceTitle "playchess.com"]
[Source "ChessBase"]
[SourceQuality "1"]
[TimeControl "40/5400+30:1800+30"]

1. e4 {[%emt 0:00:00]} c5 {[%emt 0:00:00]} 2. Nc3 {[%emt 0:00:00]} d6 {[%emt 0:00:00]} 3. f4 {[%emt 0:00:09]} Nc6 {[%emt 0:00:14]} 4. Nf3 {[%emt 0:00:59]} e6 {[%emt 0:02:15]} 5. Bc4 {[%emt 0:01:42]} Nf6 {[%emt 0:02:20]} 6. d3 {[%emt 0:04:20]} Be7 {[%emt 0:01:44]} 7. O-O {[%emt 0:01:10]} a6 {[%emt 0:03:45]} 8. a4 {[%emt 0:08:15]} Qc7 {[%emt 0:08:01]} 9. h3 {[%emt 0:08:36]} h5 {[%emt 0:14:47]} 10. Be3 {[%emt 0:11:36]} Nb4 {[%emt 0:11:50]} 11. e5 {[%emt 0:13:52]} Nd7 {[%emt 0:13:50]} 12. exd6 {[%emt 0:01:54]} Bxd6 {[%emt 0:05:33]} 13. Ng5 {[%emt 0:07:34]} Be7 {[%emt 0:05:19]} 14. Bb3 {[%emt 0:04:06]} g6 {[%emt 0:05:22]} 15. Nce4 {[%emt 0:08:07]} Nd5 {[%emt 0:04:20]} 16. Bd2 {[%emt 0:01:41]} N7f6 {[%emt 0:00:36]} 17. Qf3 {[%emt 0:02:17]} Bd7 {[%emt 0:01:33]} 18. Rae1 {[%emt 0:03:59]} Rf8 {[%emt 0:02:03]} 19. c4 {[%emt 0:06:01]} Nb4 {[%emt 0:01:38]} 20. Bxb4 {[%emt 0:02:19]} cxb4 {[%emt 0:00:08]} 21. d4 {[%emt 0:00:53]} O-O-O {[%emt 0:01:45]} 22. Kh1 {[%emt 0:04:15]} Nxe4 23. Qxe4 {[%emt 0:00:12]} Bxg5 {[%emt 0:02:27]} 24. fxg5 Bc6 25. d5 {[%emt 0:01:56]} Bd7 {[%emt 0:02:45]} 26. Rc1 {[%emt 0:00:54]} Kb8 {[%emt 0:01:07]} 27. c5 {[%emt 0:03:06]} exd5 {[%emt 0:01:07]} 28. Qxb4 {[%emt 0:00:35]} Bc6 {[%emt 0:01:11]} 29. Qf4 {[%emt 0:01:31]} Qxf4 {[%emt 0:02:33]} 30. Rxf4 {[%emt 0:00:06]} Rde8 {[%emt 0:00:39]} 31. Rc2 {[%emt 0:00:45]} Re5 {[%emt 0:00:52]} 32. h4 {[%emt 0:01:04]} Kc7 {[%emt 0:00:52]} 33. Kg1 {[%emt 0:00:49]} Re6 {[%emt 0:00:58]} 34. Rd2 {[%emt 0:00:59]} Re5 {[%emt 0:00:34]} 35. Kf2 {[%emt 0:00:28]} Kd7 {[%emt 0:00:56]} 36. Bc2 {[%emt 0:00:54]} Ke7 {[%emt 0:00:23]} 37. Re2 {[%emt 0:00:30]} Rxe2+ {[%emt 0:02:27]} 38. Kxe2 {[%emt 0:00:05]} Rd8 {[%emt 0:00:44]} 39. Kd3 {[%emt 0:00:32]} Rd7 {[%emt 0:01:32]} 40. Kd4 {[%emt 0:00:00]} Ke8 {[%emt 0:00:00]} 41. Rf3 {[%emt 0:01:16]} Re7 {[%emt 0:04:50]} 42. b4 {[%emt 0:11:38]} Kd8 {[%emt 0:03:41]} 43. Re3 {[%emt 0:00:55]} Rd7 {[%emt 0:02:13]} 44. Bb3 {[%emt 0:02:12]} Kc7 {[%emt 0:03:54]} 45. a5 {[%emt 0:05:01]} Kc8 {[%emt 0:01:14]} 46. Re5 {[%emt 0:01:01]} Kc7 {[%emt 0:00:51]} 47. Bxd5 {[%emt 0:03:04]} Bxd5 {[%emt 0:00:32]} 48. Rxd5 {[%emt 0:00:07]} Re7 {[%emt 0:00:10]} 49. Re5 {[%emt 0:02:28]} Rd7+ {[%emt 0:00:22]} 50. Kc3 {[%emt 0:03:07]} Kc6 {[%emt 0:01:48]} 51. Kc4 {[%emt 0:02:28]} Rc7 {[%emt 0:08:38]} 52. Re8 {[%emt 0:01:10]} Kd7 {[%emt 0:00:45]} 53. Re4 {[%emt 0:00:17]} Kc6 {[%emt 0:00:53]} 54. Rf4 {[%emt 0:00:43]} Rd7 {[%emt 0:00:26]} 55. Rf6+ {[%emt 0:01:17]} Kc7 {[%emt 0:00:14]} 56. g3 {[%emt 0:00:32]} Kc8 {[%emt 0:00:48]} 57. b5 {[%emt 0:00:29]} axb5+ {[%emt 0:00:18]} 58. Kxb5 {[%emt 0:00:06]} Kb8 {[%emt 0:01:45]} 59. Rd6 {[%emt 0:00:58]} Re7 {[%emt 0:00:38]} 60. Kb6 {[%emt 0:00:22]} Kc8 {[%emt 0:00:27]} 61. c6 {[%emt 0:00:48]} bxc6 {[%emt 0:00:44]} 62. Rxc6+ {[%emt 0:00:12]} Kb8 {[%emt 0:00:14]} 63. a6 {[%emt 0:00:23]} Rd7 {[%emt 0:01:04]} 64. Rc3 {[%emt 0:00:50]} Rd6+ {[%emt 0:00:37]} 65. Kb5 {[%emt 0:00:29]} Rd7 {[%emt 0:00:29]} 66. Ra3 {[%emt 0:00:36]} Ka7 {[%emt 0:00:26]} 67. Kc6 {[%emt 0:00:37]} Re7 {[%emt 0:00:52]} 68. Kd6 {[%emt 0:00:36]} Re6+ {[%emt 0:00:32]} 69. Kd5 {[%emt 0:00:32]} Re7 {[%emt 0:00:14]} 70. Kd4 {[%emt 0:00:34]} Re6 {[%emt 0:00:25]} 71. Ra5 {[%emt 0:00:46]} Re7 {[%emt 0:00:39]} 72. Re5 {[%emt 0:00:44]} Rd7+ {[%emt 0:00:11]} 73. Rd5 {[%emt 0:00:17]} Re7 {[%emt 0:00:14]} 74. Rd6 {[%emt 0:00:19]} Re1 {[%emt 0:02:23]} 75. Rd7+ {[%emt 0:00:30]} Kxa6 {[%emt 0:00:09]} 76. Rxf7 {[%emt 0:00:10]} Rg1 {[%emt 0:00:11]} 77. Rf3 {[%emt 0:00:20]} Rg2 {[%emt 0:00:14]} 78. Ke5 {[%emt 0:00:13]} Kb5 {[%emt 0:01:11]} 79. Kf6 {[%emt 0:00:25]} Kc4 {[%emt 0:00:07]} 80. Kxg6 {[%emt 0:00:20]} Kd4 {[%emt 0:00:09]} 81. Kxh5 {[%emt 0:00:36]} Ke4 {[%emt 0:00:15]} 82. Rf8 {[%emt 0:00:41]} Rxg3 {[%emt 0:00:08]} 83. g6 {[%emt 0:00:14]} Ke5 {[%emt 0:00:12]} 84. Kh6 {[%emt 0:00:16]} Rg4 {[%emt 0:00:06]} 85. h5 {[%emt 0:00:23]} Ke6 {[%emt 0:00:18]} 86. g7 {[%emt 0:00:26]} 1-0

[Event "EYCC Girls-U12 2019"]
[Site "Bratislava"]
[Date "2019.08.06"]
[Round "5.21"]
[White "Bargan, Victoria"]
[Black "Smirnova, Jekaterina"]
[Result "1/2-1/2"]
[ECO "D06"]
[WhiteElo "1574"]
[BlackElo "1372"]
[Annotator "NA"]
[PlyCount "89"]
[EventDate "2019.08.02"]
[EventType "swiss"]
[EventCountry "SVK"]
[SourceTitle "playchess.com"]
[Source "ChessBase"]
[SourceQuality "1"]
[TimeControl "40/5400+30:1800+30"]

1. d4 {[%emt 0:00:00]} d5 {[%emt 0:00:00]} 2. c4 {[%emt 0:00:00]} Nf6 {[%emt 0:00:00]} 3. cxd5 {[%emt 0:00:40]} Qxd5 {[%emt 0:00:24]} 4. Nc3 {[%emt 0:00:09]} Qd8 {[%emt 0:00:11]} 5. Bg5 {[%emt 0:02:29]} e6 {[%emt 0:04:08]} 6. e3 {[%emt 0:01:51]} Be7 {[%emt 0:00:19]} 7. Nf3 {[%emt 0:00:30]} O-O {[%emt 0:00:21]} 8. Bd3 {[%emt 0:00:37]} Nd5 {[%emt 0:02:01]} 9. Bxe7 {[%emt 0:01:10]} Qxe7 {[%emt 0:00:37]} 10. O-O {[%emt 0:01:35]} Nd7 {[%emt 0:01:37]} 11. Nxd5 {[%emt 0:05:45]} exd5 {[%emt 0:00:11]} 12. Qc2 {[%emt 0:00:07]} Nf6 {[%emt 0:00:37]} 13. Rfc1 {[%emt 0:01:50]} c6 {[%emt 0:00:30]} 14. Rab1 {[%emt 0:02:21]} Bg4 {[%emt 0:01:56]} 15. Ne5 {[%emt 0:01:41]} Bh5 {[%emt 0:00:27]} 16. b4 {[%emt 0:00:49]} a6 {[%emt 0:00:49]} 17. a4 {[%emt 0:00:17]} Rac8 {[%emt 0:01:11]} 18. Bf5 {[%emt 0:06:41]} Rc7 {[%emt 0:03:23]} 19. b5 {[%emt 0:03:19]} axb5 {[%emt 0:02:37]} 20. axb5 {[%emt 0:00:22]} Bg6 {[%emt 0:00:13]} 21. Nxg6 {[%emt 0:07:00]} fxg6 {[%emt 0:00:08]} 22. b6 {[%emt 0:02:43]} gxf5 {[%emt 0:00:44]} 23. bxc7 {[%emt 0:00:04]} Qxc7 {[%emt 0:00:09]} 24. Qb3 {[%emt 0:16:23]} Rf7 {[%emt 0:00:39]} 25. Qb6 {[%emt 0:04:17]} Qd7 {[%emt 0:01:32]} 26. Ra1 {[%emt 0:01:09]} h5 {[%emt 0:00:48]} 27. Ra8+ {[%emt 0:01:32]} Kh7 {[%emt 0:00:06]} 28. Ra7 {[%emt 0:03:00]} Ne4 {[%emt 0:04:13]} 29. f3 {[%emt 0:18:21]} Nd6 {[%emt 0:00:30]} 30. Rb1 {[%emt 0:06:37]} Qe7 {[%emt 0:00:52]} 31. Qb3 {[%emt 0:02:29]} h4 {[%emt 0:00:46]} 32. Rc1 {[%emt 0:00:30]} Qg5 {[%emt 0:02:00]} 33. f4 {[%emt 0:02:04]} Qg6 {[%emt 0:00:37]} 34. Ra8 {[%emt 0:03:58]} h3 {[%emt 0:00:59]} 35. g3 {[%emt 0:00:05]} Ne4 {[%emt 0:00:15]} 36. Qc2 {[%emt 0:02:58]} Rf6 {[%emt 0:04:03]} 37. Qe2 {[%emt 0:00:21]} Re6 {[%emt 0:11:50]} 38. Qf3 {[%emt 0:00:29]} Nd2 {[%emt 0:00:40]} 39. Qe2 {[%emt 0:00:41]} Nc4 {[%emt 0:02:58]} 40. Rc3 {[%emt 0:00:00]} Nd6 {[%emt 0:00:00]} 41. Rca3 {[%emt 0:08:18]} Ne4 {[%emt 0:02:09]} 42. Rb8 {[%emt 0:12:10]} Nxg3 {[%emt 0:28:13]} 43. hxg3 {[%emt 0:00:14]} Qxg3+ {[%emt 0:00:04]} 44. Kh1 {[%emt 0:00:09]} Rg6 {[%emt 0:02:41]} 45. Ra1 1/2-1/2